[Event "Early-Titled-Tuesday-Blitz-September-26-2023"]
[Site "Chess.com"]
[Date "2023.09.26"]
[Round "11"]
[White "wqws"]
[Black "Caroexpert"]
[Result "0-1"]
[WhiteElo "2633"]
[BlackElo "2474"]
[TimeControl "180+1"]
[EndTime "10:03:59 PDT"]
[Termination "Caroexpert won by resignation"]

1. e4 {[%clk 0:03:00.3]} 1... c6 {[%clk 0:02:59.7]} 2. d4 {[%clk 0:03:00.1]}
2... d6 {[%clk 0:03:00.6]} 3. c4 {[%clk 0:02:59.9]} 3... Nf6 {[%clk 0:02:59]} 4.
Nc3 {[%clk 0:03:00.8]} 4... e5 {[%clk 0:02:54.5]} 5. dxe5 {[%clk 0:02:58.7]}
5... dxe5 {[%clk 0:02:54.5]} 6. Qxd8+ {[%clk 0:02:59.6]} 6... Kxd8 {[%clk
0:02:54.9]} 7. Nf3 {[%clk 0:03:00.5]} 7... Nbd7 {[%clk 0:02:53.6]} 8. Bg5 {[%clk
0:02:58.1]} 8... Bb4 {[%clk 0:02:49]} 9. O-O-O {[%clk 0:02:57]} 9... Kc7 {[%clk
0:02:41.6]} 10. Bd3 {[%clk 0:02:52.6]} 10... Re8 {[%clk 0:02:37.2]} 11. Ne2
{[%clk 0:02:50.5]} 11... h6 {[%clk 0:02:34.9]} 12. Bh4 {[%clk 0:02:44.6]} 12...
Bd6 {[%clk 0:02:13.6]} 13. Bc2 {[%clk 0:02:44.1]} 13... g5 {[%clk 0:01:57.5]}
14. Bg3 {[%clk 0:02:44.2]} 14... Nc5 {[%clk 0:01:57.8]} 15. Nc3 {[%clk
0:02:28.4]} 15... a5 {[%clk 0:01:49.9]} 16. Rxd6 {[%clk 0:02:21.8]} 16... Kxd6
{[%clk 0:01:48]} 17. Rd1+ {[%clk 0:02:22.4]} 17... Ke7 {[%clk 0:01:44.2]} 18.
Bxe5 {[%clk 0:02:22.6]} 18... Nfd7 {[%clk 0:01:14.1]} 19. Bd6+ {[%clk
0:02:22.4]} 19... Kf6 {[%clk 0:01:14]} 20. e5+ {[%clk 0:02:22.7]} 20... Kg7
{[%clk 0:01:12]} 21. Nd4 {[%clk 0:02:22.6]} 21... b6 {[%clk 0:00:53]} 22. Nf5+
{[%clk 0:02:22.4]} 22... Kh7 {[%clk 0:00:45.4]} 23. h4 {[%clk 0:02:22.4]} 23...
Nxe5 {[%clk 0:00:37.6]} 24. hxg5 {[%clk 0:02:20.8]} 24... Ned3+ {[%clk
0:00:29.4]} 25. Bxd3 {[%clk 0:02:07.5]} 25... Nxd3+ {[%clk 0:00:30.3]} 26. Rxd3
{[%clk 0:02:08.4]} 26... Bxf5 {[%clk 0:00:29.8]} 27. Rf3 {[%clk 0:02:08.2]}
27... Bg6 {[%clk 0:00:19.4]} 28. gxh6 {[%clk 0:02:07.7]} 28... Rad8 {[%clk
0:00:18.2]} 29. Rf6 {[%clk 0:02:05.8]} 29... Rd7 {[%clk 0:00:14.8]} 30. f4
{[%clk 0:01:45.6]} 30... Re1+ {[%clk 0:00:14.3]} 31. Kd2 {[%clk 0:01:45.3]}
31... Re6 {[%clk 0:00:14.7]} 32. Rxe6 {[%clk 0:01:43.2]} 32... fxe6 {[%clk
0:00:15.6]} 33. c5 {[%clk 0:01:43.3]} 33... bxc5 {[%clk 0:00:15.8]} 0-1

[Event "Early-Titled-Tuesday-Blitz-September-26-2023"]
[Site "Chess.com"]
[Date "2023.09.26"]
[Round "11"]
[White "jjlai1111"]
[Black "Cheer_Down"]
[Result "1-0"]
[WhiteElo "2381"]
[BlackElo "2462"]
[TimeControl "180+1"]
[EndTime "10:04:08 PDT"]
[Termination "jjlai1111 won by resignation"]

1. d4 {[%clk 0:02:56.9]} 1... Nf6 {[%clk 0:02:59.4]} 2. Nf3 {[%clk 0:02:57.7]}
2... d5 {[%clk 0:02:59]} 3. g3 {[%clk 0:02:57.8]} 3... e6 {[%clk 0:02:58.6]} 4.
Bg2 {[%clk 0:02:58.3]} 4... Be7 {[%clk 0:02:59.1]} 5. c4 {[%clk 0:02:59]} 5...
O-O {[%clk 0:02:58.9]} 6. Nc3 {[%clk 0:02:59.6]} 6... dxc4 {[%clk 0:02:55.5]} 7.
e4 {[%clk 0:02:56]} 7... Nc6 {[%clk 0:02:54.2]} 8. Be3 {[%clk 0:02:52.9]} 8...
a6 {[%clk 0:02:50.1]} 9. a4 {[%clk 0:02:47.9]} 9... Ng4 {[%clk 0:02:37.8]} 10.
O-O {[%clk 0:02:42.6]} 10... Nxe3 {[%clk 0:02:36.7]} 11. fxe3 {[%clk 0:02:43.1]}
11... Rb8 {[%clk 0:02:30.5]} 12. a5 {[%clk 0:02:28.2]} 12... b5 {[%clk
0:02:27.2]} 13. axb6 {[%clk 0:02:28]} 13... cxb6 {[%clk 0:02:27.5]} 14. d5
{[%clk 0:02:20.9]} 14... Nb4 {[%clk 0:02:24.4]} 15. Nd4 {[%clk 0:02:03.6]} 15...
e5 {[%clk 0:02:17.4]} 16. Nf5 {[%clk 0:01:54.1]} 16... Bxf5 {[%clk 0:02:15.5]}
17. exf5 {[%clk 0:01:50.9]} 17... Bc5 {[%clk 0:02:14.5]} 18. Qe2 {[%clk
0:01:46.1]} 18... Qg5 {[%clk 0:02:05.6]} 19. Rf3 {[%clk 0:01:37.7]} 19... b5
{[%clk 0:01:51.8]} 20. Ne4 {[%clk 0:01:35.3]} 20... Qe7 {[%clk 0:01:46.7]} 21.
f6 {[%clk 0:01:31.9]} 21... Qa7 {[%clk 0:01:29.4]} 22. fxg7 {[%clk 0:00:55.1]}
22... Kxg7 {[%clk 0:01:29.3]} 23. Kh1 {[%clk 0:00:53.4]} 23... f5 {[%clk
0:01:25.8]} 24. Ng5 {[%clk 0:00:53.3]} 24... Rbe8 {[%clk 0:01:18.2]} 25. Ne6+
{[%clk 0:00:50.8]} 25... Rxe6 {[%clk 0:01:18.1]} 26. dxe6 {[%clk 0:00:51.5]}
26... e4 {[%clk 0:01:15]} 27. Rf4 {[%clk 0:00:42]} 27... Bxe3 {[%clk 0:01:05.9]}
28. e7 {[%clk 0:00:42.2]} 28... Re8 {[%clk 0:01:00.6]} 29. Rxf5 {[%clk
0:00:41.4]} 29... Nd3 {[%clk 0:01:01.3]} 30. Qg4+ {[%clk 0:00:39.7]} 30... Kh8
{[%clk 0:01:00.5]} 31. Rf8+ {[%clk 0:00:39.8]} 1-0

[Event "Early-Titled-Tuesday-Blitz-September-26-2023"]
[Site "Chess.com"]
[Date "2023.09.26"]
[Round "11"]
[White "AsaHoffmann"]
[Black "CristianS27"]
[Result "1-0"]
[WhiteElo "2403"]
[BlackElo "2463"]
[TimeControl "180+1"]
[EndTime "10:04:14 PDT"]
[Termination "AsaHoffmann won by resignation"]

1. d4 {[%clk 0:02:58.5]} 1... Nf6 {[%clk 0:03:00.1]} 2. Bg5 {[%clk 0:02:50.8]}
2... Ne4 {[%clk 0:03:00.1]} 3. Bf4 {[%clk 0:02:50.8]} 3... c5 {[%clk 0:03:00.2]}
4. f3 {[%clk 0:02:50.6]} 4... Qa5+ {[%clk 0:02:56.8]} 5. c3 {[%clk 0:02:50.5]}
5... Nf6 {[%clk 0:02:57.4]} 6. d5 {[%clk 0:02:50.5]} 6... e6 {[%clk 0:02:55.9]}
7. e4 {[%clk 0:02:50.4]} 7... exd5 {[%clk 0:02:56.4]} 8. exd5 {[%clk 0:02:50.3]}
8... d6 {[%clk 0:02:57]} 9. Na3 {[%clk 0:02:49.5]} 9... Be7 {[%clk 0:02:56.5]}
10. Nc4 {[%clk 0:02:48.1]} 10... Qd8 {[%clk 0:02:50.3]} 11. a4 {[%clk
0:02:46.4]} 11... O-O {[%clk 0:02:50.9]} 12. Be2 {[%clk 0:02:41.4]} 12... Re8
{[%clk 0:02:49.6]} 13. g4 {[%clk 0:02:34.8]} 13... Nbd7 {[%clk 0:02:37.4]} 14.
Nh3 {[%clk 0:02:33.9]} 14... Nb6 {[%clk 0:02:35.9]} 15. Ne3 {[%clk 0:02:29.9]}
15... Nh5 {[%clk 0:02:24.3]} 16. gxh5 {[%clk 0:02:22.1]} 16... Bxh3 {[%clk
0:02:25.2]} 17. Kf2 {[%clk 0:02:15.7]} 17... Bh4+ {[%clk 0:02:22.8]} 18. Bg3
{[%clk 0:02:15.4]} 18... Qg5 {[%clk 0:02:18.8]} 19. Qd3 {[%clk 0:02:05.5]} 19...
c4 {[%clk 0:02:08.4]} 20. Qd4 {[%clk 0:01:47.1]} 20... Bxg3+ {[%clk 0:01:51.6]}
21. hxg3 {[%clk 0:01:47]} 21... Bd7 {[%clk 0:01:37.1]} 22. f4 {[%clk 0:01:46.7]}
22... Qe7 {[%clk 0:01:32.6]} 23. Bf3 {[%clk 0:01:43.1]} 23... Nc8 {[%clk
0:01:24.2]} 24. h6 {[%clk 0:01:42.7]} 24... f6 {[%clk 0:01:21.3]} 25. Rae1
{[%clk 0:01:40.6]} 25... g6 {[%clk 0:01:19]} 26. Qxc4 {[%clk 0:01:35.1]} 26...
Nb6 {[%clk 0:01:16.1]} 27. Qd4 {[%clk 0:01:34.8]} 27... Qf7 {[%clk 0:01:16.2]}
28. a5 {[%clk 0:01:32.3]} 28... Na4 {[%clk 0:01:15.8]} 29. Re2 {[%clk
0:01:22.7]} 29... Rac8 {[%clk 0:01:13.2]} 30. Rhe1 {[%clk 0:01:21.5]} 30... Bb5
{[%clk 0:00:54.7]} 31. c4 {[%clk 0:01:19.7]} 31... Ba6 {[%clk 0:00:54.6]} 32. b3
{[%clk 0:01:17.8]} 32... Nc5 {[%clk 0:00:54.4]} 33. Ng4 {[%clk 0:01:15.4]} 33...
Nd7 {[%clk 0:00:46.8]} 34. Rxe8+ {[%clk 0:01:05.1]} 34... Rxe8 {[%clk
0:00:47.7]} 35. Rxe8+ {[%clk 0:01:03.9]} 35... Qxe8 {[%clk 0:00:47.9]} 36. Nxf6+
{[%clk 0:00:58.5]} 36... Nxf6 {[%clk 0:00:47.9]} 37. Qxf6 {[%clk 0:00:58.4]}
37... Qd7 {[%clk 0:00:47.6]} 38. Bg4 {[%clk 0:00:57.3]} 1-0

[Event "Early-Titled-Tuesday-Blitz-September-26-2023"]
[Site "Chess.com"]
[Date "2023.09.26"]
[Round "11"]
[White "Arek_pacitan"]
[Black "Maxfan2008"]
[Result "0-1"]
[WhiteElo "2672"]
[BlackElo "2585"]
[TimeControl "180+1"]
[EndTime "10:04:18 PDT"]
[Termination "Maxfan2008 won by resignation"]

1. e4 {[%clk 0:02:45.4]} 1... c5 {[%clk 0:03:00]} 2. Nf3 {[%clk 0:02:41.6]} 2...
d6 {[%clk 0:03:00.5]} 3. d4 {[%clk 0:02:40.4]} 3... cxd4 {[%clk 0:03:01.4]} 4.
Nxd4 {[%clk 0:02:41.3]} 4... Nf6 {[%clk 0:03:01.6]} 5. Nc3 {[%clk 0:02:41.8]}
5... a6 {[%clk 0:03:02]} 6. Be3 {[%clk 0:02:41.6]} 6... e5 {[%clk 0:03:02.1]} 7.
Nb3 {[%clk 0:02:41]} 7... Be6 {[%clk 0:03:02.7]} 8. f3 {[%clk 0:02:41.2]} 8...
Be7 {[%clk 0:03:03.2]} 9. Qd2 {[%clk 0:02:41.8]} 9... O-O {[%clk 0:03:03.2]} 10.
g4 {[%clk 0:02:41.1]} 10... d5 {[%clk 0:03:02.2]} 11. g5 {[%clk 0:02:41]} 11...
d4 {[%clk 0:03:01.9]} 12. gxf6 {[%clk 0:02:41.5]} 12... Bxf6 {[%clk 0:03:02.2]}
13. Bf2 {[%clk 0:02:27.1]} 13... dxc3 {[%clk 0:02:59.5]} 14. Qxc3 {[%clk
0:02:28]} 14... Nc6 {[%clk 0:02:51.4]} 15. Bd3 {[%clk 0:02:28]} 15... Be7 {[%clk
0:02:46.1]} 16. Qd2 {[%clk 0:02:20.5]} 16... Bg5 {[%clk 0:02:39.7]} 17. Be3
{[%clk 0:02:19.7]} 17... Bh4+ {[%clk 0:02:34.9]} 18. Bf2 {[%clk 0:02:19.4]}
18... Bg5 {[%clk 0:02:35]} 19. Be3 {[%clk 0:02:19.5]} 19... Bh4+ {[%clk
0:02:32.9]} 20. Bf2 {[%clk 0:02:18.2]} 20... Bxf2+ {[%clk 0:02:18.6]} 21. Qxf2
{[%clk 0:02:19.1]} 21... Nb4 {[%clk 0:02:18.4]} 22. O-O-O {[%clk 0:02:09.9]}
22... Nxa2+ {[%clk 0:02:13.5]} 23. Kb1 {[%clk 0:02:10.1]} 23... Nb4 {[%clk
0:02:11.2]} 24. Bc4 {[%clk 0:02:10.2]} 24... Qe7 {[%clk 0:02:00.8]} 25. Bxe6
{[%clk 0:02:10.2]} 25... Qxe6 {[%clk 0:02:01.7]} 26. Rhg1 {[%clk 0:02:09.9]}
26... a5 {[%clk 0:01:57.8]} 27. Nc1 {[%clk 0:01:30.7]} 27... Rfc8 {[%clk
0:01:48.3]} 28. c3 {[%clk 0:01:30.8]} 28... Na6 {[%clk 0:01:46.4]} 29. Rd5
{[%clk 0:01:24.2]} 29... Nc7 {[%clk 0:01:41.9]} 30. Qg3 {[%clk 0:01:19]} 30...
g6 {[%clk 0:01:38.7]} 31. Rxe5 {[%clk 0:01:19.1]} 31... Qb6 {[%clk 0:01:26.1]}
32. Re7 {[%clk 0:00:58.3]} 32... Nb5 {[%clk 0:01:18.6]} 33. Qf4 {[%clk 0:00:57]}
33... Rf8 {[%clk 0:01:12.1]} 34. Qe5 {[%clk 0:00:52.8]} 34... Na3+ {[%clk
0:00:58.4]} 0-1

[Event "Early-Titled-Tuesday-Blitz-September-26-2023"]
[Site "Chess.com"]
[Date "2023.09.26"]
[Round "11"]
[White "viktorskliarov"]
[Black "Herman-NY"]
[Result "1-0"]
[WhiteElo "2657"]
[BlackElo "2503"]
[TimeControl "180+1"]
[EndTime "10:04:20 PDT"]
[Termination "viktorskliarov won on time"]

1. e4 {[%clk 0:03:00.9]} 1... c5 {[%clk 0:03:00.1]} 2. Nf3 {[%clk 0:03:00.5]}
2... Nc6 {[%clk 0:03:00.8]} 3. Bb5 {[%clk 0:03:00.1]} 3... e6 {[%clk 0:03:01]}
4. Bxc6 {[%clk 0:02:59.9]} 4... bxc6 {[%clk 0:03:01.9]} 5. d3 {[%clk 0:03:00.2]}
5... Ne7 {[%clk 0:03:02]} 6. Qe2 {[%clk 0:03:00.5]} 6... Ng6 {[%clk 0:03:02.3]}
7. h4 {[%clk 0:03:00.8]} 7... h5 {[%clk 0:03:02.3]} 8. e5 {[%clk 0:03:01.2]}
8... f6 {[%clk 0:03:02.3]} 9. Qe4 {[%clk 0:03:01]} 9... Kf7 {[%clk 0:03:00.9]}
10. Na3 {[%clk 0:02:51.3]} 10... d5 {[%clk 0:02:45.8]} 11. exd6 {[%clk
0:02:50.9]} 11... Qxd6 {[%clk 0:02:46.1]} 12. Nc4 {[%clk 0:02:49.8]} 12... Qd5
{[%clk 0:02:46.2]} 13. Bd2 {[%clk 0:02:25.7]} 13... e5 {[%clk 0:02:44]} 14. Ne3
{[%clk 0:02:04.2]} 14... Qe6 {[%clk 0:02:15.3]} 15. Ba5 {[%clk 0:01:55]} 15...
Be7 {[%clk 0:01:59.7]} 16. b3 {[%clk 0:01:52.2]} 16... Rb8 {[%clk 0:01:24.9]}
17. a4 {[%clk 0:01:47.3]} 17... Nf4 {[%clk 0:00:47.5]} 18. g3 {[%clk 0:01:40.7]}
18... Nd5 {[%clk 0:00:45.5]} 19. Nc4 {[%clk 0:01:34.9]} 19... Bd7 {[%clk
0:00:27.4]} 20. O-O-O {[%clk 0:01:30.5]} 20... Qf5 {[%clk 0:00:15.2]} 21. Rhe1
{[%clk 0:01:12.2]} 21... Be6 {[%clk 0:00:08.8]} 22. Ncxe5+ {[%clk 0:01:02.7]}
22... fxe5 {[%clk 0:00:08.9]} 23. Nxe5+ {[%clk 0:01:03.2]} 23... Ke8 {[%clk
0:00:01.8]} 24. Nxc6 {[%clk 0:01:03.3]} 1-0

[Event "Early-Titled-Tuesday-Blitz-September-26-2023"]
[Site "Chess.com"]
[Date "2023.09.26"]
[Round "11"]
[White "Kostukov_Alex"]
[Black "Mikhail_Golubev"]
[Result "0-1"]
[WhiteElo "2409"]
[BlackElo "2587"]
[TimeControl "180+1"]
[EndTime "10:04:28 PDT"]
[Termination "Mikhail_Golubev won by resignation"]

1. g3 {[%clk 0:02:54.6]} 1... g6 {[%clk 0:02:58.1]} 2. Bg2 {[%clk 0:02:54.7]}
2... Bg7 {[%clk 0:02:58.6]} 3. c4 {[%clk 0:02:55.2]} 3... e5 {[%clk 0:02:58]} 4.
Nc3 {[%clk 0:02:54.1]} 4... Nc6 {[%clk 0:02:58.1]} 5. d3 {[%clk 0:02:49.6]} 5...
d6 {[%clk 0:02:58]} 6. Nf3 {[%clk 0:02:49.8]} 6... f5 {[%clk 0:02:57.2]} 7. O-O
{[%clk 0:02:49.5]} 7... h6 {[%clk 0:02:56.7]} 8. Qd2 {[%clk 0:02:49.6]} 8... Nf6
{[%clk 0:02:50.3]} 9. Rb1 {[%clk 0:02:49.1]} 9... a5 {[%clk 0:02:46.4]} 10. a3
{[%clk 0:02:48.9]} 10... O-O {[%clk 0:02:45.7]} 11. b4 {[%clk 0:02:49.2]} 11...
axb4 {[%clk 0:02:45.8]} 12. axb4 {[%clk 0:02:50.1]} 12... Kh7 {[%clk 0:02:41.5]}
13. b5 {[%clk 0:02:47.2]} 13... Ne7 {[%clk 0:02:41.2]} 14. Bb2 {[%clk
0:02:47.3]} 14... g5 {[%clk 0:02:34.8]} 15. Ra1 {[%clk 0:02:46.3]} 15... Rb8
{[%clk 0:02:30.3]} 16. Ne1 {[%clk 0:02:42.5]} 16... Ng6 {[%clk 0:02:25.2]} 17.
Nc2 {[%clk 0:02:42.3]} 17... g4 {[%clk 0:02:08]} 18. Nb4 {[%clk 0:02:37.9]}
18... h5 {[%clk 0:02:05.1]} 19. Nbd5 {[%clk 0:02:34.6]} 19... Bh6 {[%clk
0:02:02.5]} 20. Qc2 {[%clk 0:02:30.4]} 20... Nxd5 {[%clk 0:01:53.9]} 21. Nxd5
{[%clk 0:02:29.4]} 21... h4 {[%clk 0:01:51.6]} 22. b6 {[%clk 0:02:16.2]} 22...
c6 {[%clk 0:01:50]} 23. Nc7 {[%clk 0:02:16.2]} 23... f4 {[%clk 0:01:36.8]} 24.
Be4 {[%clk 0:01:48.7]} 24... hxg3 {[%clk 0:01:35.3]} 25. fxg3 {[%clk 0:01:47.5]}
25... fxg3 {[%clk 0:01:35]} 26. hxg3 {[%clk 0:01:41.2]} 26... Be3+ {[%clk
0:01:26]} 27. Kg2 {[%clk 0:01:40.4]} 27... Kg7 {[%clk 0:01:15.5]} 28. d4 {[%clk
0:01:34.2]} 28... Nh4+ {[%clk 0:01:06.3]} 29. Kh1 {[%clk 0:00:52]} 29... Rh8
{[%clk 0:01:03.9]} 30. dxe5 {[%clk 0:00:32]} 30... Nf5+ {[%clk 0:01:02.1]} 31.
Kg2 {[%clk 0:00:29.2]} 31... Rh2+ {[%clk 0:01:01]} 0-1

[Event "Early-Titled-Tuesday-Blitz-September-26-2023"]
[Site "Chess.com"]
[Date "2023.09.26"]
[Round "11"]
[White "Mikhail_Bryakin"]
[Black "Vanina1989"]
[Result "1-0"]
[WhiteElo "2841"]
[BlackElo "2716"]
[TimeControl "180+1"]
[EndTime "10:04:30 PDT"]
[Termination "Mikhail_Bryakin won by resignation"]

1. Nf3 {[%clk 0:02:59.5]} 1... d5 {[%clk 0:03:00.1]} 2. b3 {[%clk 0:02:54.7]}
2... c6 {[%clk 0:02:59.5]} 3. Bb2 {[%clk 0:02:55]} 3... Bg4 {[%clk 0:02:59.5]}
4. d3 {[%clk 0:02:52.6]} 4... Nd7 {[%clk 0:02:58.5]} 5. Nbd2 {[%clk 0:02:52.9]}
5... Ngf6 {[%clk 0:02:57.2]} 6. h3 {[%clk 0:02:53.4]} 6... Bh5 {[%clk
0:02:55.2]} 7. g4 {[%clk 0:02:53.6]} 7... Bg6 {[%clk 0:02:55.6]} 8. Bg2 {[%clk
0:02:54.2]} 8... e6 {[%clk 0:02:55.3]} 9. Nh4 {[%clk 0:02:47.4]} 9... Bc5 {[%clk
0:02:55]} 10. e3 {[%clk 0:02:46.2]} 10... Qe7 {[%clk 0:02:52.8]} 11. a3 {[%clk
0:02:45.4]} 11... a5 {[%clk 0:02:44]} 12. Qe2 {[%clk 0:02:44.6]} 12... O-O
{[%clk 0:02:35.3]} 13. f4 {[%clk 0:02:41.2]} 13... Ne8 {[%clk 0:02:32.6]} 14.
Ndf3 {[%clk 0:02:37.2]} 14... Bb6 {[%clk 0:02:20.5]} 15. Nxg6 {[%clk 0:02:37.3]}
15... hxg6 {[%clk 0:02:19]} 16. h4 {[%clk 0:02:37.1]} 16... a4 {[%clk
0:02:15.9]} 17. b4 {[%clk 0:02:34.7]} 17... c5 {[%clk 0:02:14.1]} 18. h5 {[%clk
0:02:25.3]} 18... gxh5 {[%clk 0:02:13.7]} 19. Rxh5 {[%clk 0:02:22.8]} 19... cxb4
{[%clk 0:02:11.9]} 20. Qf1 {[%clk 0:02:17.5]} 20... Nef6 {[%clk 0:02:07.4]} 21.
Rh4 {[%clk 0:02:15.5]} 21... Nxg4 {[%clk 0:01:11.3]} 22. Rxg4 {[%clk 0:02:03.7]}
22... f6 {[%clk 0:01:11.2]} 23. Qf2 {[%clk 0:01:45.7]} 23... bxa3 {[%clk
0:01:05.1]} 24. Bxa3 {[%clk 0:01:45.6]} 24... Bc5 {[%clk 0:01:05.2]} 25. Bxc5
{[%clk 0:01:40.6]} 25... Qxc5 {[%clk 0:01:02.9]} 26. Qd2 {[%clk 0:01:35.3]}
26... Rfc8 {[%clk 0:00:56.3]} 27. Nd4 {[%clk 0:01:31.6]} 27... Kf7 {[%clk
0:00:55.5]} 28. Rxg7+ {[%clk 0:01:31.4]} 28... Ke8 {[%clk 0:00:50]} 29. Qe2
{[%clk 0:01:15.7]} 29... Nf8 {[%clk 0:00:39.4]} 30. Qh5+ {[%clk 0:01:07.5]}
30... Kd8 {[%clk 0:00:39.7]} 31. Qf7 {[%clk 0:01:05.1]} 31... Rc7 {[%clk
0:00:20.9]} 32. Qxf8+ {[%clk 0:01:05.3]} 32... Qxf8 {[%clk 0:00:21.1]} 33. Nxe6+
{[%clk 0:01:06]} 33... Kc8 {[%clk 0:00:19.9]} 34. Rxc7+ {[%clk 0:01:05.6]} 34...
Kb8 {[%clk 0:00:19.7]} 35. Nxf8 {[%clk 0:01:05]} 35... Kxc7 {[%clk 0:00:20.1]}
36. Ne6+ {[%clk 0:01:05.4]} 1-0

[Event "Early-Titled-Tuesday-Blitz-September-26-2023"]
[Site "Chess.com"]
[Date "2023.09.26"]
[Round "11"]
[White "astralpulse"]
[Black "Squirlolz"]
[Result "1-0"]
[WhiteElo "2683"]
[BlackElo "2568"]
[TimeControl "180+1"]
[EndTime "10:04:32 PDT"]
[Termination "astralpulse won by resignation"]

1. d4 {[%clk 0:03:00.9]} 1... Nf6 {[%clk 0:02:59.8]} 2. c4 {[%clk 0:02:59.9]}
2... c5 {[%clk 0:03:00]} 3. d5 {[%clk 0:02:58.2]} 3... e6 {[%clk 0:03:00.3]} 4.
Nc3 {[%clk 0:02:58.3]} 4... exd5 {[%clk 0:03:01.2]} 5. cxd5 {[%clk 0:02:58]}
5... d6 {[%clk 0:03:02.1]} 6. g3 {[%clk 0:02:58]} 6... g6 {[%clk 0:03:02.8]} 7.
Bg2 {[%clk 0:02:58.2]} 7... Bg7 {[%clk 0:03:03.6]} 8. Nf3 {[%clk 0:02:58.8]}
8... O-O {[%clk 0:03:04.3]} 9. O-O {[%clk 0:02:59.3]} 9... Nbd7 {[%clk
0:03:04.7]} 10. Bf4 {[%clk 0:02:51.4]} 10... Qe7 {[%clk 0:03:03.9]} 11. h3
{[%clk 0:02:51.2]} 11... Nh5 {[%clk 0:03:01.7]} 12. Bg5 {[%clk 0:02:48.6]} 12...
f6 {[%clk 0:03:01.7]} 13. Bd2 {[%clk 0:02:48.4]} 13... f5 {[%clk 0:03:02.2]} 14.
Rb1 {[%clk 0:02:40.7]} 14... Ne5 {[%clk 0:02:56.8]} 15. Nxe5 {[%clk 0:02:35.3]}
15... Bxe5 {[%clk 0:02:57.7]} 16. e3 {[%clk 0:02:34.1]} 16... Bd7 {[%clk
0:02:56]} 17. b4 {[%clk 0:02:32.6]} 17... Rfc8 {[%clk 0:02:29.6]} 18. bxc5
{[%clk 0:02:26.8]} 18... Rxc5 {[%clk 0:02:28]} 19. Ne2 {[%clk 0:02:19.9]} 19...
b5 {[%clk 0:02:20.1]} 20. Bb4 {[%clk 0:02:01.1]} 20... Rc4 {[%clk 0:02:16.3]}
21. Nd4 {[%clk 0:01:49.8]} 21... a5 {[%clk 0:02:13.5]} 22. Be1 {[%clk
0:01:42.7]} 22... Bxd4 {[%clk 0:02:02.8]} 23. exd4 {[%clk 0:01:42.9]} 23... b4
{[%clk 0:02:02.7]} 24. Bd2 {[%clk 0:01:31.6]} 24... Qf7 {[%clk 0:01:47.6]} 25.
Re1 {[%clk 0:01:29.4]} 25... Nf6 {[%clk 0:01:47.3]} 26. Bf4 {[%clk 0:01:22.9]}
26... Ra6 {[%clk 0:01:34.4]} 27. Qe2 {[%clk 0:00:59.1]} 27... Bb5 {[%clk
0:01:33.5]} 28. a4 {[%clk 0:00:58.9]} 28... Rb6 {[%clk 0:00:33.9]} 29. axb5
{[%clk 0:00:58.2]} 29... Rc7 {[%clk 0:00:33.8]} 30. Rec1 {[%clk 0:00:53.7]}
30... Rxc1+ {[%clk 0:00:29.6]} 31. Rxc1 {[%clk 0:00:53.4]} 31... Nxd5 {[%clk
0:00:30.5]} 32. Rc8+ {[%clk 0:00:50.7]} 32... Kg7 {[%clk 0:00:29.9]} 33. Bxd5
{[%clk 0:00:49.7]} 33... Qxd5 {[%clk 0:00:28.7]} 34. Qe7+ {[%clk 0:00:49.7]}
34... Qf7 {[%clk 0:00:26.7]} 35. Bh6+ {[%clk 0:00:49.2]} 1-0

[Event "Early-Titled-Tuesday-Blitz-September-26-2023"]
[Site "Chess.com"]
[Date "2023.09.26"]
[Round "11"]
[White "Mariia89"]
[Black "PawnEatingZombie"]
[Result "1-0"]
[WhiteElo "2087"]
[BlackElo "2134"]
[TimeControl "180+1"]
[EndTime "10:04:41 PDT"]
[Termination "Mariia89 won on time"]

1. d4 {[%clk 0:03:00]} 1... Nf6 {[%clk 0:02:55.7]} 2. Nf3 {[%clk 0:03:00.1]}
2... c5 {[%clk 0:02:55.6]} 3. d5 {[%clk 0:02:59.8]} 3... b5 {[%clk 0:02:55.2]}
4. c4 {[%clk 0:02:58.2]} 4... Bb7 {[%clk 0:02:51.6]} 5. b3 {[%clk 0:02:52.6]}
5... g6 {[%clk 0:02:45.4]} 6. Bb2 {[%clk 0:02:52]} 6... Bg7 {[%clk 0:02:45.8]}
7. Nbd2 {[%clk 0:02:50]} 7... O-O {[%clk 0:02:45.5]} 8. e4 {[%clk 0:02:49.4]}
8... d6 {[%clk 0:02:43.2]} 9. Be2 {[%clk 0:02:47.3]} 9... bxc4 {[%clk
0:02:35.5]} 10. Bxc4 {[%clk 0:02:41.2]} 10... Nbd7 {[%clk 0:02:35.1]} 11. Qc2
{[%clk 0:02:39.6]} 11... Nb6 {[%clk 0:02:32.2]} 12. O-O {[%clk 0:02:39.3]} 12...
Nxc4 {[%clk 0:02:26.8]} 13. Nxc4 {[%clk 0:02:38.3]} 13... a5 {[%clk 0:02:10.7]}
14. Rfe1 {[%clk 0:02:36.1]} 14... a4 {[%clk 0:02:09.1]} 15. bxa4 {[%clk
0:02:32.5]} 15... Ba6 {[%clk 0:02:03.5]} 16. Nfd2 {[%clk 0:02:20.5]} 16... Qc7
{[%clk 0:01:58.2]} 17. a5 {[%clk 0:02:17.4]} 17... Bxc4 {[%clk 0:01:50.1]} 18.
Nxc4 {[%clk 0:02:16.5]} 18... Rfb8 {[%clk 0:01:49.3]} 19. Bc3 {[%clk 0:02:13.9]}
19... Nd7 {[%clk 0:01:27.2]} 20. Bxg7 {[%clk 0:02:09.3]} 20... Kxg7 {[%clk
0:01:28.1]} 21. Qc3+ {[%clk 0:02:08.1]} 21... f6 {[%clk 0:01:25.6]} 22. Rab1
{[%clk 0:01:56.6]} 22... Ne5 {[%clk 0:01:12.9]} 23. Nb6 {[%clk 0:01:55.7]} 23...
Ra6 {[%clk 0:01:09.8]} 24. f4 {[%clk 0:01:50.6]} 24... Nf7 {[%clk 0:00:43.3]}
25. h3 {[%clk 0:01:47.5]} 25... Rb7 {[%clk 0:00:40.5]} 26. Nc4 {[%clk
0:01:38.9]} 26... g5 {[%clk 0:00:30]} 27. g3 {[%clk 0:01:37.6]} 27... h6 {[%clk
0:00:21.6]} 28. Rb6 {[%clk 0:01:36.8]} 28... Rba7 {[%clk 0:00:17.9]} 29. Reb1
{[%clk 0:01:35.3]} 29... Qd7 {[%clk 0:00:17]} 30. Kg2 {[%clk 0:01:33.3]} 30...
Qa4 {[%clk 0:00:15.2]} 31. R1b2 {[%clk 0:01:31.5]} 31... h5 {[%clk 0:00:06.9]}
32. Rb8 {[%clk 0:01:24.3]} 32... Qd1 {[%clk 0:00:06.3]} 33. Qc2 {[%clk
0:01:11.9]} 33... Qe1 {[%clk 0:00:06.1]} 34. Qe2 {[%clk 0:01:10.4]} 34... Qc3
{[%clk 0:00:05.2]} 35. Rc2 {[%clk 0:01:05]} 35... Qa1 {[%clk 0:00:04.8]} 36.
Qxh5 {[%clk 0:01:04.3]} 1-0